bitfinex/quotes_SOLUSD_20250612
["timestamp","ask_amount","ask_price","bid_price","bid_amount"]
[1749744104458,6.35727908,157.3,157.24,46.38151374]
[1749744104679,46.38151374,157.28,157.23,28.88]
[1749744104886,18.933972,157.28,157.15,6.1892]
[1749744105052,18.933972,157.28,157.19,46.38151374]
[1749744105053,46.38151374,157.24,157.19,46.38151374]
[1749744105252,46.38151374,157.24,157.18,3.27]
[1749744105253,0.28432314,157.24,157.18,3.27]
[1749744105478,0.28432314,157.24,157.15,6.1892]
[1749744105479,22.26038287,157.23,157.15,6.1892]
[1749744105679,46.38151374,157.18,157.15,6.1892]
[1749744105887,46.38151374,157.17,157.13,1.5793]
[1749744106062,26.0,157.2,157.14,3.27]
[1749744106267,46.38151374,157.17,157.14,3.27]
[1749744106592,26.0,157.2,157.14,49.65151374]
[1749744106593,46.38151374,157.19,157.14,49.65151374]
[1749744106956,46.38151374,157.17,157.14,3.27]
[1749744107370,46.38151374,157.18,157.14,3.27]
[1749744107581,52.74370906,157.18,157.13,47.96081374]
[1749744107761,46.38151374,157.17,157.13,1.5793]
[1749744108079,46.38151374,157.16,157.12,75.18151374]
[1749744108279,46.38151374,157.17,157.12,46.38151374]
[1749744108581,52.74370906,157.18,157.13,46.38151374]
[1749744109167,6.36219532,157.18,157.14,46.38151374]
[1749744109391,6.36010939,157.23,157.17,46.38151374]
[1749744109685,6.36091851,157.21,157.16,46.38151374]
[1749744109854,52.74243225,157.21,157.16,46.38151374]
[1749744110481,46.38151374,157.2,157.15,28.8]
[1749744110779,46.38151374,157.2,157.11,32.62312314]
[1749744110780,46.38151374,157.17,157.13,46.38151374]
[1749744110969,46.38151374,157.17,157.12,46.38151374]
[1749744111164,46.38151374,157.17,157.12,75.18151374]
[1749744111573,46.38151374,157.14,157.09,1.5765]
[1749744111781,46.38151374,157.12,157.07,6.098]
[1749744111982,46.38151374,157.11,157.06,75.18151374]
[1749744112194,46.38151374,157.11,157.05,1.5703]
[1749744112195,46.38151374,157.1,157.05,1.5703]
[1749744112372,46.38151374,157.1,157.05,30.3703]
[1749744112573,46.38151374,157.1,157.06,46.38151374]
[1749744112787,26.0,157.13,157.04,46.38151374]
[1749744112788,46.38151374,157.09,157.04,46.38151374]
[1749744112976,0.28432314,157.12,157.01,1.6453]
[1749744113180,46.38151374,157.05,157.01,28.8]
[1749744113389,26.0,157.09,157.04,46.38151374]
[1749744113711,6.3653243,157.11,157.06,46.38151374]
[1749744113874,46.38151374,157.1,157.04,28.82]
[1749744114206,46.38151374,157.12,157.04,47.46964886]
[1749744114408,46.38151374,157.16,157.11,46.38151374]
[1749744114581,46.38151374,157.16,157.12,46.38151374]
[1749744115099,6.1708,157.22,157.1,18.933972]
[1749744115299,46.38151374,157.18,157.13,46.38151374]
[1749744115528,46.38151374,157.18,157.14,46.38151374]
[1749744115808,6.36176393,157.19,157.14,46.38151374]
[1749744115967,46.38151374,157.18,157.14,46.38151374]
[1749744116166,46.38151374,157.18,157.13,46.38151374]
[1749744116601,26.0,157.18,157.14,46.38151374]
[1749744116914,46.38151374,157.15,157.09,6.3325]
[1749744117065,46.38151374,157.1,157.06,46.38151374]
[1749744117271,46.38151374,157.1,157.06,75.20151374]
[1749744117481,46.38151374,157.12,157.07,46.38151374]
[1749744117884,46.38151374,157.11,157.07,28.82]
[1749744118174,46.38151374,157.14,157.09,46.38151374]
[1749744118390,46.38151374,157.13,157.07,28.82]
[1749744118697,46.38151374,157.13,157.08,46.38151374]
[1749744118900,46.38151374,157.13,157.07,28.82]
[1749744119102,32.36355702,157.15,157.07,75.20151374]
[1749744119308,46.38151374,157.13,157.08,46.38151374]
[1749744119483,32.36355702,157.15,157.07,28.82]
[1749744119484,46.38151374,157.12,157.07,28.82]
[1749744119684,46.38151374,157.12,157.08,46.38151374]
[1749744119992,46.38151374,157.13,157.09,46.38151374]
[1749744120523,46.38151374,157.13,157.07,28.82]
[1749744120524,46.38151374,157.13,157.08,46.38151374]
[1749744120701,46.38151374,157.11,157.05,6.4673]
[1749744121017,26.0,157.11,157.05,75.20151374]
[1749744121386,6.36326106,157.16,157.1,46.38151374]
[1749744121691,52.74283689,157.2,157.15,46.38151374]
[1749744121994,78.74283689,157.2,157.16,46.38151374]
[1749744122205,6.36100447,157.21,157.17,46.38151374]
[1749744122720,52.74168212,157.23,157.19,46.38151374]
[1749744122927,46.38151374,157.23,157.19,46.38151374]
[1749744123097,6.35976022,157.24,157.2,46.38151374]
[1749744123291,52.74127396,157.24,157.2,46.38151374]
[1749744123490,46.38151374,157.25,157.21,46.38151374]
[1749744123711,46.38151374,157.26,157.21,46.38151374]
[1749744123885,46.38151374,157.25,157.2,46.38151374]
[1749744124081,46.38151374,157.23,157.18,75.20151374]
[1749744124702,46.38151374,157.24,157.19,46.38151374]
[1749744124913,26.0,157.24,157.21,46.38151374]
[1749744125101,52.74050493,157.26,157.21,46.38151374]
[1749744125609,52.74082819,157.25,157.21,46.38151374]
[1749744125922,6.35931445,157.25,157.21,46.38151374]
[1749744126216,46.38151374,157.24,157.18,28.82]
[1749744126390,46.38151374,157.24,157.2,46.38151374]
[1749744126998,46.38151374,157.22,157.18,28.82]
[1749744127339,78.74082819,157.25,157.2,46.38151374]
[1749744127496,32.50024905,157.28,157.22,46.38151374]
[1749744127825,46.38151374,157.26,157.21,46.38151374]
[1749744128130,32.50024905,157.28,157.22,46.38151374]
[1749744128300,78.73960122,157.28,157.23,46.38151374]
[1749744128628,46.38151374,157.27,157.22,75.18151374]
[1749744128812,46.38151374,157.26,157.22,46.38151374]
[1749744129004,32.35808748,157.28,157.22,46.38151374]
[1749744129223,46.38151374,157.26,157.22,46.38151374]
[1749744129734,15.89084003,157.33,157.25,46.38151374]
[1749744129903,18.64964886,157.32,157.23,28.8]
[1749744130107,46.38151374,157.26,157.22,46.38151374]
[1749744130319,46.38151374,157.24,157.17,6.4568]
[1749744130628,46.38151374,157.25,157.2,46.38151374]
[1749744130820,46.38151374,157.22,157.17,6.7868]
[1749744131017,26.0,157.26,157.17,6.4568]
[1749744131018,46.38151374,157.21,157.17,6.4568]
[1749744131334,46.38151374,157.2,157.09,6.36566805]
[1749744131537,46.38151374,157.18,157.13,65.0311626]
[1749744131828,26.0,157.23,157.12,6.6715]
[1749744131829,46.38151374,157.16,157.12,6.6715]
[1749744132031,26.28432314,157.23,157.15,46.38151374]
[1749744132032,6.36051392,157.22,157.15,46.38151374]
[1749744132321,78.74177138,157.23,157.18,46.38151374]
[1749744132528,72.38151374,157.23,157.18,46.38151374]
[1749744132715,46.38151374,157.22,157.18,46.38151374]
[1749744133112,46.38151374,157.22,157.15,28.8]
[1749744133310,32.36017174,157.23,157.17,46.38151374]
[1749744133502,32.36017174,157.23,157.18,46.38151374]
[1749744133503,46.38151374,157.23,157.18,46.38151374]
[1749744133706,26.0,157.25,157.2,46.38151374]
[1749744133919,46.38151374,157.25,157.2,46.38151374]
[1749744134129,6.35863835,157.27,157.19,18.64964886]
[1749744134427,46.38151374,157.27,157.22,46.38151374]
[1749744134616,6.35823952,157.28,157.23,46.38151374]
[1749744134814,52.73975326,157.28,157.23,46.38151374]
[1749744135136,6.35779969,157.29,157.24,46.38151374]
[1749744135325,6.35734079,157.3,157.21,36.6417]
[1749744135505,46.38151374,157.29,157.21,36.6417]
[1749744135711,6.35856222,157.27,157.22,46.38151374]
[1749744136018,52.73889637,157.3,157.25,46.38151374]
[1749744136213,46.38151374,157.3,157.25,46.38151374]
[1749744136431,46.38151374,157.29,157.25,46.38151374]
[1749744137013,46.38151374,157.3,157.25,46.38151374]
[1749744137315,6.35701569,157.31,157.26,46.38151374]
[1749744137531,32.3564852,157.32,157.27,46.38151374]
[1749744137837,46.38151374,157.31,157.27,46.38151374]
[1749744138212,6.3564852,157.32,157.27,46.38151374]
[1749744138416,52.73799894,157.32,157.27,46.38151374]
[1749744138732,52.73799894,157.32,157.28,46.38151374]
[1749744138920,52.73771529,157.33,157.28,46.38151374]
[1749744139126,46.38151374,157.32,157.27,46.38151374]
[1749744139640,0.14216157,157.32,157.23,26.0]
[1749744139814,46.38151374,157.28,157.24,29.9]
[1749744140007,46.38151374,157.26,157.21,81.52301374]
[1749744140207,46.38151374,157.26,157.21,35.1415]
[1749744140432,46.38151374,157.26,157.21,81.52301374]
[1749744140632,26.0,157.28,157.21,35.1415]
[1749744140833,26.28432314,157.27,157.19,46.38151374]
[1749744141118,46.38151374,157.22,157.17,54.52791374]
[1749744141314,26.0,157.26,157.13,8.1464]
[1749744141315,46.38151374,157.2,157.13,8.1464]
[1749744141520,46.38151374,157.2,157.15,18.64964886]
[1749744141720,46.38151374,157.21,157.17,46.38151374]
[1749744141919,6.36051392,157.22,157.17,46.38151374]
[1749744142247,46.38151374,157.22,157.17,46.38151374]
[1749744142539,46.38151374,157.21,157.14,28.8]
[1749744142725,46.38151374,157.21,157.15,1.1]
[1749744142920,46.38151374,157.21,157.17,46.38151374]
[1749744143122,46.38151374,157.22,157.17,46.38151374]
[1749744143340,46.38151374,157.25,157.2,46.38151374]
[1749744143529,46.38151374,157.25,157.21,46.38151374]
[1749744143740,26.0,157.27,157.21,46.38151374]
[1749744143917,6.35808457,157.29,157.23,46.38151374]
[1749744144116,46.38151374,157.27,157.23,46.38151374]
[1749744144313,46.38151374,157.27,157.22,46.38151374]
[1749744144517,46.38151374,157.27,157.23,46.38151374]
[1749744144946,46.38151374,157.27,157.22,46.38151374]
[1749744145141,32.35808457,157.29,157.21,28.8]
[1749744145142,46.38151374,157.25,157.21,28.8]
[1749744145345,0.28432314,157.26,157.18,28.8]
[1749744145729,46.38151374,157.2,157.16,46.38151374]
[1749744145921,22.25229272,157.29,157.19,46.38151374]
[1749744146125,26.0,157.28,157.25,46.38151374]
[1749744146329,6.35740649,157.3,157.26,46.38151374]
[1749744146517,52.73892023,157.3,157.26,46.38151374]
[1749744146742,46.38151374,157.29,157.25,46.38151374]
[1749744147049,52.73892023,157.3,157.25,46.38151374]
[1749744147228,6.35740649,157.3,157.26,46.38151374]
[1749744147550,72.38151374,157.31,157.26,46.38151374]
[1749744147940,26.0,157.31,157.27,46.38151374]
[1749744148248,26.0,157.31,157.24,18.64964886]
[1749744148249,78.73854179,157.31,157.24,18.64964886]
[1749744148429,46.38151374,157.32,157.27,46.38151374]
[1749744148628,46.38151374,157.34,157.29,46.38151374]
[1749744149032,46.38151374,157.31,157.26,28.8]
[1749744149339,46.38151374,157.32,157.27,46.38151374]
[1749744149642,26.0,157.33,157.26,28.8]
[1749744149842,46.38151374,157.33,157.29,46.38151374]
[1749744150045,46.38151374,157.32,157.27,46.38151374]
[1749744150348,46.38151374,157.3,157.24,54.78]
[1749744150752,46.38151374,157.3,157.26,46.38151374]
[1749744150955,46.38151374,157.29,157.25,46.38151374]
[1749744151143,26.0,157.3,157.25,46.38151374]
[1749744151339,72.38151374,157.3,157.25,46.38151374]
[1749744151553,26.0,157.31,157.27,46.38151374]
[1749744151758,32.35625398,157.33,157.27,46.38151374]
[1749744151936,46.38151374,157.32,157.27,46.38151374]
[1749744152251,46.38151374,157.3,157.26,46.38151374]
[1749744152458,6.35687496,157.31,157.24,75.16151374]
[1749744152459,46.38151374,157.29,157.24,75.16151374]
[1749744152936,6.35687496,157.31,157.24,75.16151374]
[1749744152937,26.0,157.3,157.24,75.16151374]
[1749744153148,26.0,157.3,157.26,46.38151374]
[1749744153344,46.38151374,157.31,157.26,46.38151374]
[1749744154031,6.35619548,157.33,157.27,46.38151374]
[1749744154231,46.38151374,157.33,157.29,46.38151374]
[1749744154432,78.73726544,157.34,157.29,46.38151374]
[1749744155152,78.73726544,157.34,157.25,26.0]
[1749744155153,32.3557517,157.34,157.28,75.16151374]
[1749744155341,29.08422569,157.33,157.28,57.86422569]
[1749744155539,32.3557517,157.34,157.29,29.08422569]
[1749744155540,55.08422569,157.34,157.29,29.08422569]
[1749744155737,29.08422569,157.33,157.29,29.08422569]
[1749744155935,29.08422569,157.3,157.22,1.6253]
[1749744156132,29.08422569,157.28,157.23,28.78]
[1749744156443,29.08422569,157.28,157.23,57.86422569]
[1749744156651,29.08422569,157.26,157.21,6.4833]
[1749744156839,26.0,157.27,157.19,29.08422569]
[1749744157035,26.0,157.27,157.21,29.08422569]
[1749744157439,29.08422569,157.24,157.2,57.86422569]
[1749744157638,29.08422569,157.24,157.2,29.08422569]
[1749744157854,26.0,157.27,157.2,29.08422569]
[1749744157855,29.08422569,157.25,157.2,29.08422569]
[1749744158157,6.35956473,157.25,157.19,57.86422569]
[1749744158353,29.08422569,157.22,157.14,1.5151]
[1749744158532,29.08422569,157.2,157.14,1.5151]
[1749744158734,29.08422569,157.2,157.15,30.18422569]
[1749744159040,29.08422569,157.2,157.15,58.96422569]
[1749744159243,46.28644618,157.2,157.16,46.28644618]
[1749744159546,26.0,157.22,157.16,46.28644618]
[1749744159746,46.28644618,157.2,157.16,46.28644618]
[1749744160161,52.64749564,157.21,157.16,46.28644618]
[1749744160846,15.89565872,157.28,157.18,46.28644618]
[1749744161033,46.28644618,157.25,157.21,46.28644618]
[1749744161445,46.28644618,157.25,157.2,75.06644618]
[1749744162364,46.28644618,157.24,157.2,75.06644618]
[1749744162662,6.35946333,157.25,157.21,46.28644618]
[1749744162837,6.35946333,157.25,157.2,28.78]
[1749744162838,52.64590951,157.25,157.2,75.06644618]
[1749744163658,52.64590951,157.25,157.21,46.28644618]
[1749744163659,46.28644618,157.25,157.21,46.28644618]
[1749744163866,26.0,157.28,157.24,46.28644618]
[1749744164034,46.28644618,157.27,157.2,28.78]
[1749744164364,52.64437658,157.29,157.24,46.28644618]
[1749744164744,52.64437658,157.29,157.25,46.28644618]
[1749744165151,6.3579304,157.29,157.24,46.28644618]
[1749744165353,52.64437658,157.29,157.24,46.28644618]
[1749744165545,52.64437658,157.29,157.25,46.28644618]
[1749744165746,52.64437658,157.29,157.24,46.28644618]
[1749744166048,52.64437658,157.29,157.25,46.28644618]
[1749744166253,52.64437658,157.29,157.23,28.78]
[1749744166649,6.3579304,157.29,157.24,46.28644618]
[1749744166843,52.64437658,157.29,157.24,46.28644618]
[1749744167269,52.64437658,157.29,157.23,28.78]
[1749744167270,72.28644618,157.3,157.25,46.28644618]
[1749744167449,72.28644618,157.3,157.26,46.28644618]
[1749744167647,78.64374974,157.3,157.23,28.78]
[1749744167854,78.64374974,157.3,157.25,46.28644618]
[1749744168649,78.64374974,157.3,157.26,46.28644618]
[1749744169073,78.64374974,157.3,157.25,46.28644618]
[1749744169965,32.35746004,157.3,157.26,46.28644618]
[1749744170167,46.28644618,157.28,157.23,75.06644618]
[1749744170372,52.64493794,157.27,157.23,75.06644618]
[1749744171255,6.35849176,157.27,157.23,75.06644618]
[1749744171452,52.64469328,157.28,157.24,46.28644618]
[1749744171652,52.64469328,157.28,157.22,6.5087]
[1749744171848,46.28644618,157.24,157.2,46.28644618]
[1749744172181,46.28644618,157.23,157.19,46.28644618]
[1749744172391,52.6467577,157.23,157.18,6.5077]
[1749744172677,52.6467577,157.23,157.19,46.28644618]
[1749744172846,52.6467577,157.23,157.18,35.2877]
[1749744173060,52.64629673,157.24,157.2,46.28644618]
[1749744173677,6.35985055,157.24,157.18,81.57414618]
[1749744173869,6.35985055,157.24,157.19,46.28644618]
[1749744173870,52.64629673,157.24,157.19,46.28644618]
[1749744174176,52.64629673,157.24,157.18,35.2877]
[1749744174469,52.64667436,157.23,157.19,46.28644618]
[1749744174674,46.28644618,157.2,157.14,7.5351]
[1749744174850,46.28644618,157.18,157.14,81.08644618]
[1749744175358,46.28644618,157.19,157.15,46.28644618]
[1749744175589,46.28644618,157.19,157.14,6.02]
[1749744175887,46.28644618,157.19,157.14,52.30644618]
[1749744176571,52.64845253,157.19,157.14,52.30644618]
[1749744179678,52.64845253,157.19,157.14,6.02]
[1749744179866,46.28644618,157.17,157.12,46.28644618]
[1749744180057,46.28644618,157.17,157.12,28.78]
[1749744180251,6.36200635,157.19,157.12,28.78]
[1749744180455,15.89821152,157.26,157.17,46.28644618]
[1749744180675,46.28644618,157.24,157.18,28.78]
[1749744180882,6.35930047,157.25,157.18,34.8332]
[1749744181082,46.28644618,157.24,157.19,46.28644618]
[1749744181258,35.47734847,157.25,157.2,29.118048]
[1749744181585,35.47704811,157.26,157.22,29.118048]
[1749744181754,6.35900011,157.26,157.22,29.118048]
[1749744181962,6.35863087,157.27,157.23,29.118048]
[1749744182161,29.118048,157.28,157.23,29.118048]
[1749744182587,29.118048,157.28,157.21,28.78]
[1749744182765,29.118048,157.27,157.21,28.78]
[1749744183126,6.35768326,157.29,157.23,29.118048]
[1749744183465,6.35768326,157.29,157.22,29.118048]
[1749744183990,6.35768326,157.29,157.23,29.118048]
[1749744184368,6.35768326,157.29,157.21,28.78]
[1749744184369,22.25189141,157.29,157.21,28.78]
[1749744184559,22.25189141,157.29,157.22,29.118048]
[1749744185878,29.118048,157.24,157.19,88.6]
[1749744186071,29.118048,157.22,157.18,123.771248]
[1749744186388,29.118048,157.26,157.21,29.118048]
[1749744186596,29.118048,157.26,157.22,29.118048]
[1749744186597,26.0,157.26,157.22,29.118048]
[1749744186770,32.35768326,157.29,157.23,29.118048]
[1749744186969,29.118048,157.27,157.23,29.118048]
[1749744187864,6.35841318,157.28,157.23,29.118048]
[1749744188068,35.47646118,157.28,157.23,29.118048]
[1749744189589,23.3340973,157.32,157.26,29.118048]
[1749744189793,55.118048,157.31,157.26,29.118048]
[1749744189992,26.0,157.31,157.26,29.118048]
[1749744190178,29.118048,157.3,157.26,29.118048]
[1749744190489,29.118048,157.3,157.25,29.118048]
[1749744191091,29.118048,157.28,157.23,30.3211]
[1749744191292,48.24906236,157.31,157.24,29.118048]
[1749744191477,29.118048,157.29,157.24,29.118048]
[1749744191798,29.118048,157.29,157.25,29.118048]
[1749744192093,35.47601772,157.29,157.25,29.118048]
[1749744192268,35.47601772,157.29,157.24,29.118048]
[1749744192593,35.47601772,157.29,157.25,29.118048]
[1749744192795,6.35741664,157.3,157.25,29.118048]
[1749744192979,35.47546464,157.3,157.25,29.118048]
[1749744193172,29.118048,157.29,157.25,29.118048]
[1749744193387,29.118048,157.29,157.24,29.118048]
[1749744193675,29.118048,157.29,157.25,29.118048]
[1749744193868,6.35741664,157.3,157.25,29.118048]
[1749744194481,35.47546464,157.3,157.25,29.118048]
[1749744194682,35.47546464,157.3,157.23,30.3211]
[1749744194683,61.4750585,157.31,157.26,29.118048]
[1749744194900,61.4750585,157.31,157.27,29.118048]
[1749744195093,32.35606686,157.33,157.29,29.118048]
[1749744195291,61.47411486,157.33,157.24,107.24964886]
[1749744195609,29.118048,157.32,157.24,107.24964886]
[1749744195908,6.35445129,157.37,157.3,29.118048]
[1749744196091,29.118048,157.35,157.26,26.0]
[1749744196288,29.118048,157.34,157.27,18.64964886]
[1749744196496,29.118048,157.34,157.29,29.118048]
[1749744197104,29.118048,157.34,157.3,29.118048]
[1749744197283,35.47361651,157.35,157.3,117.718048]
[1749744199308,35.47361651,157.35,157.31,29.118048]
[1749744199606,6.35556851,157.35,157.31,29.118048]
[1749744199914,35.47361651,157.35,157.3,117.718048]
[1749744200285,35.47361651,157.35,157.31,29.118048]
[1749744200490,6.35502216,157.36,157.32,29.118048]
[1749744201394,7.3,157.4,157.33,29.118048]
[1749744201592,35.47169181,157.39,157.34,29.118048]
[1749744201915,29.118048,157.38,157.34,29.118048]
[1749744202108,29.118048,157.37,157.3,143.36]
[1749744202414,29.118048,157.33,157.29,29.118048]
[1749744202616,29.118048,157.31,157.26,29.118048]
[1749744202816,29.118048,157.31,157.27,29.118048]
[1749744202990,29.118048,157.33,157.28,29.118048]
[1749744203417,35.47371089,157.34,157.29,29.118048]
[1749744203999,6.35566289,157.34,157.29,29.118048]
[1749744204211,35.47371089,157.34,157.29,29.118048]
[1749744204522,35.4733249,157.35,157.28,28.74]
[1749744204699,6.3552769,157.35,157.31,29.118048]
[1749744205325,35.4733249,157.35,157.31,29.118048]
[1749744205645,35.4733249,157.35,157.32,29.118048]
[1749744205646,6.3552769,157.35,157.32,29.118048]
[1749744206290,6.35481916,157.37,157.33,29.118048]
[1749744206495,35.47221307,157.38,157.34,29.118048]
[1749744206832,35.47221307,157.38,157.35,29.118048]
[1749744206833,6.35416507,157.38,157.35,29.118048]
[1749744207939,6.35416507,157.38,157.34,29.118048]
[1749744208826,6.35416507,157.38,157.3,107.24964886]
[1749744208827,29.118048,157.35,157.3,88.6]
[1749744208998,29.118048,157.31,157.23,1.5411]
[1749744209200,29.118048,157.28,157.25,1.83]
[1749744209396,26.0,157.29,157.25,1.83]
[1749744209596,26.0,157.29,157.22,29.118048]
[1749744209808,29.118048,157.26,157.21,35.313848]
[1749744210024,29.118048,157.25,157.2,29.118048]
[1749744210337,29.118048,157.26,157.21,30.948048]
[1749744210633,29.118048,157.25,157.21,29.118048]
[1749744210838,35.4777529,157.24,157.18,1.6254]
[1749744211006,35.4777529,157.24,157.19,29.118048]
[1749744211199,6.3597049,157.24,157.19,29.118048]
[1749744211398,35.47694409,157.26,157.17,35.1043]
[1749744211627,29.118048,157.25,157.18,18.64964886]
[1749744211806,29.118048,157.25,157.2,29.118048]
[1749744212628,29.118048,157.25,157.17,32.3643]
[1749744212629,29.118048,157.23,157.17,32.3643]
[1749744212816,29.118048,157.22,157.17,61.482348]
[1749744212999,29.118048,157.21,157.14,1.5395]
[1749744213197,29.118048,157.2,157.15,30.948048]
[1749744213418,29.118048,157.2,157.16,29.118048]
[1749744213609,29.118048,157.22,157.17,29.118048]
[1749744213810,29.118048,157.21,157.15,1.83]
[1749744214007,29.118048,157.21,157.17,29.118048]
[1749744214220,6.3597049,157.24,157.15,1.83]
[1749744214436,29.118048,157.29,157.23,29.118048]
[1749744214751,29.118048,157.28,157.23,29.118048]
[1749744215055,6.35849176,157.27,157.23,29.118048]
[1749744216228,35.47613291,157.29,157.24,29.118048]
[1749744216426,6.35808491,157.29,157.25,29.118048]
[1749744216634,29.118048,157.28,157.23,29.118048]
[1749744216820,6.35849176,157.27,157.23,29.118048]
[1749744217023,6.35821335,157.28,157.24,29.118048]
[1749744217244,6.35821335,157.28,157.25,29.118048]
[1749744217832,35.47626135,157.28,157.23,29.118048]
[1749744218124,29.118048,157.27,157.23,29.118048]
[1749744218340,29.118048,157.27,157.22,29.118048]
[1749744218845,6.18814557,157.28,157.22,29.118048]
[1749744219049,41.89366586,157.3,157.22,29.118048]
[1749744219050,48.53621455,157.29,157.22,29.118048]
[1749744219446,48.53621455,157.29,157.23,29.118048]
[1749744219629,48.53621455,157.29,157.21,6.3701]
[1749744219836,48.53621455,157.29,157.23,29.118048]
[1749744220428,32.35768326,157.29,157.24,29.118048]
[1749744220751,61.47573126,157.29,157.24,29.118048]
[1749744221125,29.118048,157.28,157.24,29.118048]
[1749744221747,61.47581445,157.29,157.24,118.218048]
[1749744222053,6.35606686,157.33,157.28,29.118048]
[1749744222248,6.35606686,157.33,157.29,29.118048]
[1749744222249,35.47411486,157.33,157.29,29.118048]
[1749744222453,15.88903378,157.35,157.24,28.74]
[1749744222454,29.118048,157.35,157.31,29.118048]
[1749744222761,29.118048,157.37,157.33,29.118048]
[1749744223437,32.35404752,157.38,157.33,29.118048]
[1749744223627,35.47278576,157.37,157.33,29.118048]
[1749744223833,35.47278576,157.37,157.32,29.118048]
[1749744224036,35.47278576,157.37,157.29,25.00024886]
[1749744224234,35.47278576,157.37,157.32,29.118048]
[1749744225058,6.35406871,157.38,157.32,29.118048]
[1749744225250,35.47211671,157.38,157.33,29.118048]
[1749744225649,6.35406871,157.38,157.34,29.118048]
[1749744226147,35.47211671,157.38,157.34,29.118048]
[1749744226536,6.35378061,157.39,157.36,29.118048]
[1749744226954,6.35378061,157.39,157.35,29.118048]
[1749744227958,35.47182861,157.39,157.33,28.72]
[1749744228146,6.35378061,157.39,157.35,29.118048]
[1749744228460,32.35337558,157.4,157.37,29.118048]
[1749744228648,32.35337558,157.4,157.36,29.118048]
[1749744228827,61.47142358,157.4,157.36,29.118048]
[1749744229033,35.47142358,157.4,157.33,28.72]
[1749744229256,35.47142358,157.4,157.36,29.118048]
[1749744229436,35.47142358,157.4,157.35,29.118048]
[1749744229826,29.118048,157.38,157.33,28.72]
[1749744230031,29.118048,157.38,157.33,57.838048]
[1749744230252,29.118048,157.38,157.34,29.118048]
[1749744230756,29.118048,157.36,157.3,1.578]
[1749744230955,29.118048,157.31,157.27,29.118048]
[1749744231155,0.28432314,157.35,157.26,1.5506]
[1749744231357,29.118048,157.31,157.26,30.668648]
[1749744231558,29.118048,157.31,157.27,29.118048]
[1749744231854,35.47502443,157.31,157.27,29.118048]
[1749744232061,29.118048,157.3,157.25,6.4539]
[1749744232249,29.118048,157.3,157.26,29.118048]
[1749744233559,35.47502443,157.31,157.26,29.118048]
[1749744233935,35.47502443,157.31,157.25,6.4539]
[1749744234144,35.47502443,157.31,157.26,29.118048]
[1749744234535,6.35697643,157.31,157.25,6.4539]
[1749744234763,29.118048,157.3,157.26,29.118048]
[1749744234952,6.35697643,157.31,157.27,29.118048]
[1749744235365,6.35643288,157.33,157.29,29.118048]
[1749744235538,6.35576594,157.34,157.25,6.4539]
[1749744235743,29.118048,157.29,157.25,6.4539]
[1749744235959,35.47578825,157.29,157.25,6.4539]
[1749744236261,35.47578825,157.29,157.22,1.5821]
[1749744236262,29.118048,157.27,157.22,1.5821]
[1749744236462,29.118048,157.26,157.21,35.499748]
[1749744236675,29.118048,157.27,157.21,35.1017]
[1749744236873,29.118048,157.26,157.22,29.118048]
[1749744237050,29.118048,157.26,157.21,35.1017]
[1749744237245,29.118048,157.26,157.21,35.499748]
[1749744237465,6.35774025,157.29,157.24,29.118048]
[1749744237764,29.118048,157.28,157.23,29.118048]
[1749744238268,6.3583595,157.28,157.24,29.118048]
[1749744238471,26.0,157.31,157.22,28.7]
[1749744238472,29.118048,157.27,157.22,28.7]
[1749744238657,6.35769805,157.29,157.22,29.118048]
[1749744238860,6.35769805,157.29,157.21,64.199748]
[1749744239372,6.35769805,157.29,157.22,29.118048]
[1749744240080,22.25108331,157.3,157.22,29.118048]
[1749744241461,22.25108331,157.3,157.22,118.218048]
[1749744242282,29.118048,157.23,157.18,6.4407]
[1749744242474,29.118048,157.25,157.21,29.118048]
[1749744242675,6.3012,157.29,157.22,29.118048]
[1749744242857,29.118048,157.28,157.19,18.933972]
[1749744243054,29.118048,157.28,157.24,29.118048]
[1749744243365,29.118048,157.25,157.18,51.09034886]
[1749744243555,29.118048,157.22,157.18,6.4407]
[1749744243760,29.118048,157.22,157.17,57.818048]
[1749744244064,29.118048,157.22,157.18,29.118048]
[1749744244266,35.47859252,157.22,157.18,29.118048]
[1749744244467,35.47831704,157.23,157.18,29.118048]
[1749744244794,29.118048,157.22,157.18,29.118048]
[1749744245077,6.36026904,157.23,157.16,28.7]
[1749744245078,61.47694409,157.26,157.21,29.118048]